Cogmind - Beta 12 *** ADVENTURER MODE // 2023.04.02 @ 17:01:32 Player: Analote Result: Destroyed by S-10 Pest with Light Assault Rifle Performance ------------- Evolutions (0) 0 Regions Visited (2) 400 Robots Destroyed (11) 55 Value Destroyed (347) 347 Prototype IDs (0) 0 Alien Tech Used (0) 0 Bonus (0) 0 TOTAL SCORE: 802 Bonus ------- None Cogmind --------- Core Integrity 0/250 Matter 266/300 Energy 99/100 System Corruption 0% Temperature Cool (2) Movement Flying (117) Ox1 Location -10/Mines Parts ------- > --- POWER (1) -------- (None) > --- PROPULSION (2) --- Flight Unit Flight Unit > --- UTILITY (2) ------ Small Storage Unit ECM Suite > --- WEAPON (2) ------- Beamcaster Light Assault Rifle > --- INVENTORY (8) ---- Light Ion Engine Light Ion Engine Light Angular Momentum Engine Wheel Small Laser Peak State ------------ > --- POWER ------------ Light Angular Momentum Engine > --- PROPULSION ------- Flight Unit Flight Unit > --- UTILITY ---------- Small Storage Unit ECM Suite > --- WEAPON ----------- Small Laser Light Assault Rifle > --- INVENTORY -------- Light Ion Engine Light Ion Engine Wheel Flight Unit Flight Unit Beamcaster [Rating: 12] Favorites ----------- Power Light Ion Engine Engine Light Ion Engine Propulsion Flight Unit Wheel Wheel Flight Unit Flight Unit Utility Small Storage Unit Device ECM Suite Storage Small Storage Unit Weapon Light Assault Rifle Energy Gun Small Laser Ballistic Gun Light Assault Rifle Build | -11 -10 -10 ------- Run | Jun Mat Min Slots Evolved . | . . . Power . | . . . Propulsion . | . . . Utility . | . . . Weapon . | . . . Parts Attached 16 | 5 7 4 Power 3 | 1 1 1 Engine 3 | 1 1 1 Core . | . . . Reactor . | . . . Propulsion 7 | 2 3 2 Treads . | . . . Leg . | . . . Wheel 3 | 2 1 . Hover . | . . . Flight 4 | . 2 2 Utility 2 | 1 1 . Device 1 | . 1 . Storage 1 | 1 . . Processor . | . . . Hackware . | . . . Protection . | . . . Artifact . | . . . Weapon 4 | 1 2 1 Energy Gun 2 | . 1 1 Energy Cannon . | . . . Ballistic Gun 2 | 1 1 . Ballistic Cannon . | . . . Launcher . | . . . Special Weapon . | . . . Impact Weapon . | . . . Slashing Weapon . | . . . Piercing Weapon . | . . . Special Melee Weapon . | . . . Unidentified Prototypes . | . . . Parts Lost 4 | . 2 2 Power 1 | . 1 . Propulsion 2 | . . 2 Utility . | . . . Weapon 1 | . 1 . Highest Loss Streak 2 | . 2 2 To Critical Strikes . | . . . Average Slot Usage (%) 82 | . 83 82 Engine 3 | . 5 . Wheel 7 | . 13 . Flight 19 | . 14 25 Device 13 | . 13 14 Storage 14 | . 14 14 Energy Gun 10 | . 8 14 Ballistic Gun 13 | . 12 14 Naked Turns . | . . . Heaviest Build 13 | 9 11 13 Greatest Support 26 | 20 26 8 Greatest Overweight (x) 1 | . 1 1 Average Overweight (x) . | . . 1 Largest Inventory Capacity 8 | 8 8 8 Average Capacity 7 | 7 8 8 Most Carried 7 | 3 6 7 Average Carried 4 | . 3 5 Final Capacity 8 | 8 8 8 Final Carried 5 | . 5 5 Class Distribution -------------------- 93% | Mutant 6% | Scavenger-Mutant Dominant Class ---------------- Mutant | -10/Materials Mutant | -10/Mines Resources | -11 -10 -10 ----------- Run | Jun Mat Min Matter Collected 363 | 250 83 30 Remotely . | . . . Salvage Created 424 | . 239 185 Parts 20 | . 11 9 Haulers Intercepted . | . . . Recyclers Shooed . | . . . Parts Field Recycled . | . . . Retrieved Matter . | . . . Parts Self-Destructed . | . . . Prevented . | . . . Kills | -11 -10 -10 ------- Run | Jun Mat Min Combat Hostiles Destroyed 10 | . 6 4 Guns 10 | . 6 4 Classes Destroyed 3 | . 3 . Watcher 1 | . 1 . Swarmer 2 | . 2 . Grunt 8 | . 4 4 Best Kill Streak 2 | . 2 2 Combat Bots Only 2 | . 2 2 Max Kills in Single Turn 1 | . 1 1 Gunslinging . | . . . Exploded . | . . . Melee . | . . . Uniques/NPCs Destroyed . | . . . Combat | -11 -10 -10 -------- Run | Jun Mat Min Damage Taken 617 | . 367 250 Core 253 | . 158 95 Absorbed by Shields . | . . . Core Remaining (%) 100 | 100 . . Volleys Fired 66 | . 46 20 Largest 2 | . 2 2 Hottest 60 | . 60 60 Shots Fired 96 | . 56 40 Gun 96 | . 56 40 Cannon . | . . . Launcher . | . . . Special . | . . . Kinetic 62 | . 42 20 Thermal 34 | . 14 20 Explosive . | . . . Electromagnetic . | . . . Robot Hit Streak 26 | . 26 21 Robot Miss Streak 1 | . 1 1 Penetration Max . | . . . Secondary Targets . | . . . Shots Hit Robots 82 | . 47 35 Core Hits 28 | . 17 11 Critical Kills . | . . . Critical Parts Destroyed 1 | . 1 . Critical Strikes 1 | . 1 . Destroy 1 | . 1 . Melee Attacks . | . . . Impact . | . . . Slashing . | . . . Piercing . | . . . Sneak Attacks . | . . . Combat Hostiles . | . . . Follow-up Attacks . | . . . Damage Inflicted 755 | . 402 353 Guns 744 | . 391 353 Cannons . | . . . Explosions . | . . . Melee . | . . . Ramming 11 | . 11 . Kinetic 424 | . 285 139 Thermal 320 | . 106 214 Explosive . | . . . Electromagnetic . | . . . Impact . | . . . Slashing . | . . . Piercing . | . . . Highest Corruption . | . . . Average Corruption . | . . . Corruption Purged . | . . . Corruption Blocked . | . . . Overload Shots . | . . . Overflow Damage . | . . . Projectiles . | . . . Explosions . | . . . Melee . | . . . Knockbacks . | . . . Impact . | . . . Kinetic . | . . . Secondary . | . . . Self-Inflicted Damage 5 | . 5 . Shots . | . . . Rammed 2 | . 2 . Targets Rammed 2 | . 2 . Kicked . | . . . Crushed . | . . . Highest Temperature 63 | . 20 63 Average Temperature 19 | . 10 26 Received Heat Transfer 399 | . 252 147 Siege Activations . | . . . Robots Corrupted . | . . . Combat Hostiles . | . . . Parts Fried . | . . . Impact Corruptions . | . . . Robots Melted . | . . . Combat Hostiles . | . . . Parts Melted 2 | . 2 . Heat Transferred 725 | . 250 475 Parts Sabotaged . | . . . Parts Stolen . | . . . Parts Stripped . | . . . Power Chain Reactions . | . . . Missiles Intercepted . | . . . Alert | -11 -10 -10 ------- Run | Jun Mat Min Peak Influence 187 | . 187 121 Initial 61 | . . 61 Average 93 | . 106 86 Maximum Alert Level . | . . . Low Security (%) 100 | 100 100 100 Level 1 . | . . . Level 2 . | . . . Level 3 . | . . . Level 4 . | . . . Level 5 . | . . . High Security . | . . . Max Security . | . . . Squads Dispatched 1 | . 1 . Investigation 1 | . 1 . Extermination . | . . . Reinforcement . | . . . Assault . | . . . Garrison . | . . . Intercept . | . . . Searches Triggered . | . . . Construction Impeded . | . . . Haulers Reinforced . | . . . Active Scanning Responses . | . . . Cargo Convoy Interrupts . | . . . Stealth | -11 -10 -10 --------- Run | Jun Mat Min Distress Signals 1 | . 1 . Communications Jammed . | . . . Distress Signals . | . . . Times Spotted 20 | . 13 7 Peak Tracking Total 3 | . 3 3 Tactical Retreats 1 | . 1 . Traps | -11 -10 -10 ------- Run | Jun Mat Min Traps Triggered 1 | . 1 . Indirectly . | . . . Trap Hack Attempts . | . . . Triggered . | . . . Disarmed . | . . . Reprogrammed . | . . . Reused . | . . . Traps Extracted . | . . . Installed . | . . . Triggered . | . . . Machines | -11 -10 -10 ---------- Run | Jun Mat Min Machines Disabled . | . . . Max in Single Turn . | . . . Machines Repaired . | . . . Machines Sabotaged . | . . . Overloaded Fab Kills . | . . . Hacking | -11 -10 -10 --------- Run | Jun Mat Min Machines Accessed . | . . . Terminals . | . . . Fabricators . | . . . Repair Stations . | . . . Recycling Units . | . . . Scanalyzers . | . . . Garrison Access . | . . . Total Hacks . | . . . Successful . | . . . Failed . | . . . Catastrophic . | . . . Database Lockouts . | . . . Manual . | . . . Terminals . | . . . Fabricators . | . . . Repair Stations . | . . . Recycling Units . | . . . Scanalyzers . | . . . Garrison Access . | . . . Terminal Hacks . | . . . Fabricator Hacks . | . . . Repair Station Hacks . | . . . Recycling Unit Hacks . | . . . Scanalyzer . | . . . Garrison Access Hacks . | . . . Unauthorized Hacks . | . . . Terminals . | . . . Fabricators . | . . . Repair Stations . | . . . Recycling Units . | . . . Scanalyzers . | . . . Garrison Access . | . . . Data Cores Recovered . | . . . Used . | . . . Hacking Detections . | . . . Full Trace Events . | . . . Feedback Events . | . . . Feedback Blocked . | . . . Robot Schematics Acquired . | . . . Robots Built . | . . . Authchips . | . . . Time . | . . . Total Robot Build Rating . | . . . Part Schematics Acquired . | . . . Parts Built . | . . . Authchips . | . . . Time . | . . . Total Part Build Rating . | . . . Parts Repaired . | . . . Time . | . . . Parts Recycled . | . . . Recycled Matter . | . . . Retrieved Matter . | . . . Retrieved Components . | . . . Parts Scanalyzed . | . . . Part Schematics Acquired . | . . . Parts Damaged . | . . . Bothacking | -11 -10 -10 ------------ Run | Jun Mat Min Used RIF Installer . | . . . Robots Hacked . | . . . Non-combat . | . . . Combat . | . . . Robot Hacks Applied . | . . . Relay Couplers Released . | . . . Fabnet Peak Effective % . | . . . Robots Rewired . | . . . Allies Hacked . | . . . Hacks Repelled . | . . . Allies | -11 -10 -10 -------- Run | Jun Mat Min Total Allies 2 | . . 2 Largest Group 2 | . . 2 Highest-Rated Group 41 | . . 41 Highest-Rated Ally 31 | . . 31 Total Orders . | . . . Ally Attacks 6 | . . 6 Total Damage 105 | . . 105 Kills . | . . . Allies Corrupted . | . . . Allies Melted . | . . . Intel | -11 -10 -10 ------- Run | Jun Mat Min Robot Analysis Total . | . . . Derelict Logs Recovered 1 | . . 1 Drone Launches . | . . . Drone Recoveries . | . . . Exploration | -11 -10 -10 ------------- Run | Jun Mat Min Turns Passed 651 | 34 362 255 Spaces Moved 378 | 32 215 131 Core 4 | 4 . . Treads . | . . . Legs . | . . . Wheels 111 | 28 83 . Hover . | . . . Flight 263 | . 132 131 Fastest Speed 37 | 50 37 117 Average Speed 105 | 76 102 117 Slowest Speed 117 | 80 117 117 Overloaded Moves . | . . . Propulsion Burnouts . | . . . Robots Hopped . | . . . Cave-ins Triggered . | . . . Exploration Rate (%) 22 | 3 39 24 Regions Visited 2 Branch Regions 1 Pre-discovered Areas . | . . . Known Exits Taken . | . . . Unknown Exits Taken 2 | 1 1 . Scrap Searched . | . . . Spaces Dug . | . . . Terrain Destroyed . | . . . Melee . | . . . Projectile . | . . . AOE . | . . . Terrain Rammed . | . . . Walls Destroyed . | . . . Machines Disabled . | . . . Actions | -11 -10 -10 --------- Run | Jun Mat Min Total 547 | 41 309 197 Wait 66 | . 27 39 Move 376 | 31 214 131 Hop . | . . . Pick Up 17 | 5 10 2 Fast Attach . | . . . Attach 14 | 5 6 3 Detach 2 | . 1 1 Swap 2 | . 1 1 Drop 2 | . 2 . Fire 66 | . 46 20 Melee . | . . . Ram 2 | . 2 . Kick . | . . . Crush . | . . . Escape Stasis . | . . . Rewire . | . . . Trap . | . . . Miscellaneous . | . . . Route ------- -11/Junkyard -10/Materials -10/Mines (discovered 1 exit: [*Mat]) History --------- Turn | Location | Event 5 | -11/Junkyard | Discovered new exit (range 16) 35 | -11/Junkyard | Entered Materials 199 | -10/Materials | Core integrity fell below 50% 303 | -10/Materials | Build established: Mutant 391 | -10/Materials | Discovered new exit (range 6) 397 | -10/Materials | Entered Mines 460 | -10/Mines | Learned location of 1 exit from Materials 579 | -10/Mines | Core integrity fell below 20% 647 | -10/Mines | Discovered new exit (range 7) 652 | -10/Mines | Destroyed by S-10 Pest with Light Assault Rifle Last Messages --------------- 00484_ Acquired 19 matter. 00486_ R-06 Scavenger collects Carbon-fiber Leg. 00494_ K-01 Serf collects debris. 00514_ Acquired 1 matter. 00516_ Acquired Beamcaster. 00519_ Acquired Lgt. Angular Momentum Engine. 00520_ K-01 Serf collects debris. 00521_ Acquired 10 matter. 00536_ K-01 Serf collects debris. 00572_ Flight Unit destroyed. 00582_ G-34 Mercenary destroyed. 00586_ Flight Unit destroyed. 00588_ K-01 Serf collects debris. 00596_ G-47 Trooper destroyed. 00597_ K-01 Serf collects debris. 00610_ R-06 Scavenger collects Imp. Heat Sink. 00613_ R-06 Scavenger collects Lgt. Nuclear Core. 00617_ R-06 Scavenger collects Heat Sink. 00621_ R-06 Scavenger collects Aluminum Leg. 00647_ EXIT=FOUND Map ----- +----------------------------------------------------+ | | | ???????????????????????????????????????? | | ???????????????????????????????????????? | | ??????????###??????????????????????????? | | ????????## ##?????????????????????????? | | ????????# #?????????????????????????? | | ????????# #?????????????????????????? | | ???????## ##?????????????????????????? | | ???????# ##???????####???????????????? | | ???????# ##???????? ????????????????? | | ???????# ##???????? ????????????????? | | ######## %######## ?????????????????? | | %= % # #?????????????????? | | ##%#### [ ##### # #?????????????????? | | ##=##### #???# # #?????????????????? | | ######??## # ##????????????????? | | #???????# #????????????????? | | #???????# #????????????????? | | #???????# #????????????????? | | #???????# #????????????????? | | """ #???????## #####????????????????? | | """ #????????# #????????###?????????? | | """ #????????# ####????? ##????????? | | ##### ##????????# #???? #????????? | | ????? #?????????#### ##### < #?????????? | | ??????#????????????# ss @ #?????????? | | ???????????????????# ##### #????? | | ???????????????????# #???? ### #????? | | ???????????????????# #????? ##????????? | | ???????????????????# #?????###?????????? | | ???????????????????# ?????????????????? | | ???????????????????###?????????????????? | | ???????????????????????????????????????? | | ???????????????????????????????????????? | | ???????????????????????????????????????? | | ???????????????????????????????????????? | | ???????????????????????????????????????? | | ???????????????????????????????????????? | | ???????????????????????????????????????? | | ???????????????????????????????????????? | | ???????????????????????????????????????? | | ???????????????????????????????????????? | | ???????????????????????????????????????? | | ???????????????????????????????????????? | | ???????????????????????????????????????? | | ???????????????????????????????????????? | | ???????????????????????????????????????? | | ???????????????????????????????????????? | | ???????????????????????????????????????? | | ???????????????????????????????????????? | +----------------------------------------------------+ Best States ------------- Heat Dissipation 25 Energy Generation 10 Energy Capacity 125 Matter Stores 300 Matter Capacity 300 Sight Range 16 Terrain Scan Density 10 ECM Strength 1 Resistance: KI 20 Resistance: TH 20 Resistance: EX 20 Resistance: EM 20 Resistance: I 20 Resistance: S 20 Resistance: P 20 Evasion (%) 44 Offensive Hacking 10 Item Schematics ----------------- None Robot Schematics ------------------ None Fabricated ------------ Nothing Alien Tech Used ----------------- None Achievements -------------- None Challenges ------------ None Game ------ Seed SniperLinkedConstruct Manual? 0 Play Time 00:06:12 Cumulative 54.1 hours Start 2023.04.02 @ 16:56:46 End 2023.04.02 @ 17:01:32 Sessions 1 Manual Loads 0 Difficulty Adventurer Special Mode None Game No. 81 Rogue 0 Adventurer 1 Explorer 80 Win Type - Total 0 Types 0/0/0/0/0/0/0/0/0 Lore% 43 Gallery% 51 Achievement% 48 Wizard Run 0 Options --------- ASCII 0 Keyboard 0 Movement Mouse Keybinds 0 Fullscreen 2 Font 18/SmallcapsGlow Map View 76x50 Tactical HUD 1 Map Filters NONE Filters NONE Steam 1 RUN: e3fd79e3-eeff-4ddc-b323-0d1d773289c4